bitfinex-derivatives/quotes_ETHF0:USTF0_20250110
["timestamp","ask_amount","ask_price","bid_price","bid_amount"]
[1736533919571,3.2078,3289.9,3289.8,41.10398]
[1736533920365,3.2078,3289.9,3289.8,40.8]
[1736533920571,3.51177,3289.9,3289.8,41.10398]
[1736533920763,3.2078,3289.9,3289.8,41.10398]
[1736533920967,3.51177,3289.9,3289.8,40.8]
[1736533921464,3.2078,3289.9,3289.3,1.1256]
[1736533921674,0.304,3289.7,3289.6,0.30399]
[1736533921864,0.30402,3289.4,3289.3,1.42962]
[1736533922072,0.30402,3289.4,3289.3,0.86712]
[1736533922371,3.2078,3289.5,3289.4,0.30402]
[1736533922570,3.51181,3289.5,3289.4,0.30402]
[1736533922763,3.2078,3289.5,3289.3,0.5631]
[1736533922965,3.2078,3289.5,3288.9,40.8]
[1736533923170,0.30405,3289.0,3288.9,40.8]
[1736533923570,0.30405,3289.0,3288.9,41.10406]
[1736533923772,3.2078,3289.1,3288.9,40.8]
[1736533923971,0.30405,3289.0,3288.9,0.30406]
[1736533924177,3.2078,3289.1,3288.5,0.5257]
[1736533924377,0.30405,3289.0,3288.9,0.30405]
[1736533924676,3.2078,3289.1,3289.0,0.30405]
[1736533925075,3.2078,3289.1,3288.6,40.8]
[1736533925370,3.51189,3288.7,3288.5,0.8298]
[1736533925571,2.83918487,3289.1,3288.9,0.30406]
[1736533925572,3.2078,3289.1,3288.9,0.30406]
[1736533925770,3.2078,3289.1,3289.0,0.30405]
[1736533926671,3.2078,3289.1,3288.2,2.83918487]
[1736533926672,3.2078,3289.1,3288.6,40.8]
[1736533926875,0.30408,3288.7,3288.6,40.8]
[1736533927367,3.2078,3288.7,3288.1,3.2078]
[1736533927675,3.2078,3288.7,3288.3,0.30411]
[1736533927676,0.3041,3288.5,3288.3,0.30411]
[1736533927871,0.3041,3288.5,3288.3,41.10411]
[1736533928282,3.51189,3288.7,3288.5,0.3041]
[1736533928480,0.3041,3288.5,3288.4,0.3041]
[1736533928781,0.30409,3288.6,3288.4,0.3041]
[1736533929073,3.2078,3288.7,3288.3,40.8]
[1736533929281,3.51184,3289.2,3289.1,0.30404]
[1736533929574,3.2078,3289.2,3289.1,0.30404]
[1736533929774,0.30402,3289.4,3289.3,0.30403]
[1736533929981,0.30401,3289.5,3289.4,0.30401]
[1736533930176,0.30402,3289.4,3289.3,40.8]
[1736533930371,3.51182,3289.4,3289.3,40.8]
[1736533930683,0.30408,3288.7,3288.6,0.5823]
[1736533930987,0.30408,3288.8,3288.6,0.30408]
[1736533931281,3.2078,3288.9,3288.4,0.5248]
[1736533931579,0.30408,3288.8,3288.7,41.10408]
[1736533931879,3.2078,3288.8,3287.4,3.2078]
[1736533932075,2.83918487,3288.6,3287.7,0.76044]
[1736533932287,0.30412,3288.3,3288.2,0.30412]
[1736533932776,2.83918487,3288.6,3287.7,0.76044]
[1736533933079,4.6358,3288.8,3288.7,0.30407]
[1736533933080,0.30408,3288.8,3288.7,0.30407]
[1736533933386,3.2078,3289.2,3287.9,3.2078]
[1736533933576,0.30412,3288.4,3288.3,0.30411]
[1736533933775,3.2078,3288.8,3287.9,3.96817]
[1736533933776,3.2078,3288.8,3287.9,3.2078]
[1736533934077,0.30413,3288.3,3288.2,0.30412]
[1736533934383,0.30411,3288.4,3288.3,0.30411]
[1736533934979,3.2078,3288.8,3288.0,0.76035]
[1736533935281,0.3041,3288.5,3288.1,0.30414]
[1736533935480,0.30411,3288.4,3288.3,0.30411]
[1736533935980,0.30415,3288.0,3287.9,0.30415]
[1736533936180,3.2078,3288.4,3287.6,1.1984]
[1736533936381,0.30412,3288.3,3288.2,0.30412]
[1736533936882,0.30412,3288.3,3288.2,40.8]
[1736533937082,0.30414,3288.1,3288.0,0.30414]
[1736533937387,3.2078,3288.4,3287.6,1.1984]
[1736533937581,3.2078,3288.4,3287.7,40.8]
[1736533937774,3.51191,3288.4,3288.3,0.30412]
[1736533937974,3.2078,3288.4,3288.3,0.30412]
[1736533938781,0.30406,3288.9,3288.6,0.30408]
[1736533938974,0.30408,3288.8,3288.7,0.30407]
[1736533939188,0.30408,3288.8,3288.3,40.8]
[1736533939482,6.04698487,3288.6,3287.9,0.6019]
[1736533939687,6.04698487,3288.6,3287.9,0.90605]
[1736533939688,0.30415,3288.0,3287.9,0.90605]
[1736533939991,0.30415,3288.0,3287.9,0.6019]
[1736533940183,6.04698487,3288.2,3287.7,41.10417]
[1736533940388,0.30416,3287.9,3287.8,0.30415]
[1736533940780,6.04698487,3288.2,3287.0,0.76058]
[1736533940981,0.30422,3287.3,3287.2,0.30421]
[1736533941275,0.76044,3287.7,3287.1,0.30422]
[1736533941276,0.30423,3287.2,3287.1,0.30422]
[1736533941678,0.30421,3287.4,3287.3,0.30421]
[1736533942092,6.04698487,3287.8,3286.9,1.176]
[1736533942283,0.30417,3287.7,3287.3,0.30421]
[1736533942586,0.3042,3287.5,3287.4,0.30419]
[1736533942980,3.2078,3287.8,3287.7,0.30417]
[1736533943382,0.30414,3288.2,3288.1,0.30413]
[1736533943583,0.3041,3288.2,3288.1,0.3041]
[1736533943881,2.83918487,3288.6,3287.8,1.1445]
[1736533944087,0.3041,3288.3,3288.2,0.30409]
[1736533944288,0.30412,3288.0,3287.9,0.30412]
[1736533944592,0.3041,3288.2,3288.1,0.3041]
[1736533944786,0.30409,3288.3,3288.2,0.30409]
[1736533945485,3.2078,3288.7,3288.0,3.2078]
[1736533945689,0.30402,3289.1,3289.0,0.30402]
[1736533945893,0.30402,3289.1,3288.7,0.30405]
[1736533945894,0.30404,3288.8,3288.7,0.30405]
[1736533946081,3.2078,3289.1,3288.7,0.30404]
[1736533946287,3.2078,3289.1,3288.4,3.2078]
[1736533946590,0.30404,3288.9,3288.8,0.30404]
[1736533947288,0.76001,3289.3,3288.6,0.5506]
[1736533947484,3.2078,3289.1,3288.6,0.5506]
[1736533948093,0.30405,3288.8,3288.7,0.30404]
[1736533948497,3.2078,3289.1,3288.6,0.5506]
[1736533948796,0.30404,3288.9,3288.8,0.30403]
[1736533949493,3.2078,3289.1,3288.6,0.5506]
[1736533949682,0.30404,3288.9,3288.8,0.30403]
[1736533950290,0.30401,3289.2,3289.0,0.30402]
[1736533950592,3.2078,3289.3,3288.8,3.2078]
[1736533950795,0.30403,3289.0,3288.9,0.30403]
[1736533950996,0.30403,3288.9,3288.8,3.51184]
[1736533951198,0.30405,3288.7,3288.6,0.5506]
[1736533951397,3.51185,3288.7,3288.6,0.5506]
[1736533951810,3.51185,3288.7,3288.6,0.85466]
[1736533952097,3.51185,3288.7,3288.6,0.5506]
[1736533952490,3.51185,3288.7,3288.6,0.85466]
[1736533953497,3.51185,3288.7,3288.6,0.5506]
[1736533953898,3.51185,3288.7,3288.2,0.30409]
[1736533953899,3.2078,3288.7,3288.2,0.30409]
[1736533954094,3.2078,3288.3,3287.9,1.106]
[1736533954397,3.2078,3288.3,3287.2,3.2078]
[1736533954596,3.2078,3287.9,3287.3,0.5589]
[1736533954802,0.30415,3287.7,3287.6,0.30415]
[1736533955196,0.30412,3288.0,3287.9,0.30411]
[1736533955400,1.427,3288.4,3287.5,3.2078]
[1736533955699,0.30414,3287.9,3287.8,0.30413]
[1736533955900,0.30412,3288.0,3287.9,0.30412]
[1736533956593,3.2078,3288.3,3287.6,40.8]
[1736533956800,0.30413,3287.9,3287.8,0.30412]
[1736533957600,3.51189,3288.3,3288.2,0.3041]
[1736533957791,0.76015,3288.7,3288.0,3.2078]
[1736533957792,3.2078,3288.7,3288.0,3.2078]
[1736533957992,3.2078,3288.7,3288.6,0.30406]
[1736533958893,0.30407,3288.6,3288.5,0.30406]
[1736533959093,3.2078,3288.7,3288.1,1.6704]
[1736533959305,0.30408,3288.5,3288.4,0.30407]
[1736533959798,3.2078,3288.7,3288.1,1.6704]
[1736533960101,0.3041,3288.2,3288.1,1.42621]
[1736533960296,3.2078,3288.3,3287.6,44.0078]
[1736533960507,0.30414,3287.8,3287.7,0.30413]
[1736533960695,3.96804,3288.3,3287.6,45.1428]
[1736533960901,0.30413,3287.9,3287.8,0.30412]
[1736533961103,0.30414,3287.7,3287.6,45.44695]
[1736533961305,0.30414,3287.8,3287.7,0.30413]
[1736533962000,0.30414,3287.7,3287.6,45.44695]
[1736533962197,0.30414,3287.8,3287.7,0.30413]
[1736533962906,0.30413,3287.9,3287.8,0.30413]
[1736533963406,0.30414,3287.7,3287.6,45.44695]
[1736533963908,3.96804,3288.3,3287.6,45.1428]
[1736533964208,0.30411,3288.1,3288.0,0.30411]
[1736533964397,3.2078,3288.3,3287.6,45.90317]
[1736533964609,3.2078,3288.8,3288.0,3.2078]
[1736533964906,3.2078,3288.8,3288.4,0.30407]
[1736533964907,0.30408,3288.5,3288.4,0.30407]
[1736533965613,0.30406,3288.7,3288.6,0.30405]
[1736533966104,0.30402,3289.1,3289.0,0.30402]
[1736533966313,0.30403,3289.0,3288.9,0.30403]
[1736533968409,0.30402,3289.1,3289.0,0.30401]
[1736533970308,3.2078,3289.4,3289.2,0.304]
[1736533970309,0.304,3289.3,3289.2,0.304]
[1736533970699,0.30401,3289.2,3289.1,0.30401]
[1736533971302,0.30401,3289.2,3288.8,3.2078]
[1736533971303,0.304,3289.3,3289.2,0.304]
[1736533973209,3.2078,3289.4,3289.3,0.304]
[1736533973210,3.51179,3289.4,3289.3,0.304]
[1736533973413,0.5809,3289.9,3289.3,0.304]
[1736533973414,0.36153379,3290.0,3289.3,3.2078]
[1736533973610,0.30397,3289.7,3289.6,0.30396]
[1736533974409,0.36153379,3290.0,3289.4,0.5567]
[1736533974605,3.2078,3290.2,3289.7,3.2078]
[1736533974806,3.2078,3290.2,3290.1,0.30392]
[1736533975212,0.30389,3290.5,3290.4,0.30389]
[1736533975420,0.30387,3290.7,3290.6,0.30387]
[1736533975917,0.30388,3290.6,3290.5,0.30388]
[1736533976319,2.34489796,3290.9,3290.3,40.8]
[1736533976623,0.30387,3290.7,3290.6,0.30387]
[1736533976824,0.30388,3290.6,3290.5,0.30388]
[1736533977114,0.30388,3290.6,3290.2,3.7645]
[1736533977115,2.34489796,3290.9,3290.2,3.7645]
[1736533977310,0.30386,3290.8,3290.2,3.7645]
[1736533977508,4.6348,3291.0,3290.2,4.52429]
[1736533977713,4.6348,3291.0,3290.3,40.8]
[1736533978217,4.93864,3291.0,3290.9,0.30385]
[1736533978417,4.6348,3291.0,3290.9,0.30385]
[1736533978808,3.2078,3291.0,3290.9,0.30385]
[1736533979014,3.2078,3291.4,3290.6,3.2078]
[1736533979206,3.2078,3291.4,3291.3,0.30381]
[1736533979207,3.5116,3291.4,3291.3,0.30381]
[1736533979514,0.30379,3291.6,3291.5,0.30379]
[1736533979716,0.3038,3291.5,3291.0,3.2078]
[1736533979915,0.3038,3291.5,3291.4,0.3038]
[1736533980417,5.55269796,3291.8,3291.2,0.30382]
[1736533980722,0.30384,3291.0,3290.9,0.30384]
[1736533981018,2.34489796,3291.2,3290.6,0.5989]
[1736533981216,0.30387,3290.8,3290.7,0.30386]
[1736533981516,0.30387,3290.8,3290.6,0.5989]
[1736533981517,2.83883262,3291.3,3290.6,0.5989]
[1736533981717,3.2078,3291.4,3290.6,0.5989]
[1736533981922,3.43463262,3291.7,3290.7,0.75967]
[1736533982220,1.427,3291.6,3290.7,0.75967]
[1736533982417,0.30382,3291.3,3291.2,0.30382]
[1736533982815,0.30384,3291.1,3291.0,0.30383]
[1736533983022,0.30384,3291.1,3290.8,0.5824]
[1736533983023,0.30379,3291.5,3291.2,0.30382]
[1736533983222,0.30382,3291.3,3291.2,0.30382]
[1736533983425,0.30385,3290.9,3290.8,0.88625]
[1736533983623,0.30387,3290.8,3290.7,0.30386]
[1736533983821,0.30387,3290.7,3290.6,0.5989]
[1736533984221,0.30385,3291.0,3290.9,0.30384]
[1736533984622,6.04663262,3291.3,3290.6,0.5989]
[1736533984928,0.30385,3290.9,3290.6,0.5989]
[1736533985121,0.30385,3290.9,3290.8,0.30385]
[1736533985925,0.30383,3291.1,3291.0,0.30383]
[1736533986133,3.2078,3291.3,3291.2,0.30382]
[1736533986430,0.30378,3291.6,3291.5,0.30379]
[1736533987021,3.2078,3292.0,3291.4,0.5733]
[1736533987221,3.2078,3292.0,3291.5,0.30379]
[1736533987222,0.30379,3291.6,3291.5,0.30379]
[1736533987523,3.2078,3292.0,3291.4,0.5733]
[1736533988222,3.2078,3292.0,3291.5,40.8]
[1736533988528,13.28206745,3292.2,3292.1,0.30374]
[1736533988921,0.30373,3292.2,3292.1,0.30374]
[1736533989128,5.97076,3292.6,3291.6,3.2078]
[1736533989330,0.30376,3291.9,3291.8,0.30376]
[1736533989625,3.2078,3292.2,3291.6,3.2078]
[1736533989825,0.30377,3291.7,3291.6,3.2078]
[1736533990028,0.30377,3291.7,3291.6,3.51158]
[1736533990322,0.30377,3291.7,3291.6,3.2078]
[1736533990527,0.30377,3291.7,3291.6,3.51158]
[1736533990719,3.2078,3292.2,3291.6,3.2078]
[1736533990921,0.30375,3292.0,3291.9,0.30375]
[1736533991626,0.30374,3292.1,3292.0,0.30374]
[1736533991831,0.30373,3292.3,3292.2,0.30372]
[1736533992020,3.2078,3292.6,3291.7,0.75944]
[1736533992325,0.3037,3292.5,3292.4,0.3037]
[1736533992526,3.2078,3292.6,3292.0,0.5338]
[1736533992728,0.30374,3292.1,3292.0,0.83724]
[1736533992931,3.2078,3292.2,3291.6,3.2078]
[1736533993523,0.30377,3291.7,3291.6,3.51158]
[1736533993726,0.30377,3291.8,3291.7,0.30376]
[1736533993927,0.30379,3291.5,3291.4,0.5733]
[1736533994234,3.2078,3291.8,3290.6,0.55]
[1736533994421,2.83883262,3291.3,3290.1,1.0862]
[1736533994627,3.2078,3291.0,3290.1,1.0862]
[1736533994928,3.2078,3291.0,3290.5,0.30388]
[1736533994929,0.30386,3290.8,3290.5,0.30388]
[1736533995118,3.2078,3291.0,3290.7,0.30386]
[1736533995322,3.2078,3291.0,3290.7,0.30387]
[1736533995518,0.30384,3291.0,3290.7,0.30386]
[1736533995728,0.30384,3291.0,3290.5,0.55]
[1736533995729,0.30385,3290.9,3290.8,0.5546]
[1736533997630,3.735,3291.6,3290.8,0.5546]
[1736533997831,3.735,3291.6,3290.9,0.5304]
[1736533997832,0.30384,3291.0,3290.9,0.5304]
[1736533998042,0.30384,3291.0,3290.9,0.83425]
[1736533998324,0.75949,3291.5,3291.0,0.30384]
[1736533998325,0.30383,3291.1,3291.0,0.30384]
[1736533999128,0.30383,3291.1,3291.0,40.8]
[1736533999532,0.75951,3291.4,3290.9,0.5304]
[1736533999830,0.30389,3290.4,3290.3,3.2078]
[1736534000228,0.30389,3290.4,3290.3,3.5117]
[1736534001323,0.30389,3290.5,3290.4,0.30389]
[1736534003219,0.30389,3290.4,3290.3,44.0078]
[1736534003420,0.30389,3290.4,3290.3,40.8]
[1736534004227,3.2078,3290.8,3290.3,40.8]
[1736534004228,0.30389,3290.5,3290.4,0.30388]
[1736534004435,3.2078,3291.3,3290.3,44.0078]
[1736534004635,0.30385,3291.0,3290.9,0.30384]
[1736534005034,0.30385,3290.9,3290.8,3.51165]
[1736534005226,0.30385,3290.9,3290.8,44.31165]
[1736534005426,0.30383,3291.2,3291.1,0.30382]
[1736534005636,0.30384,3291.1,3291.0,0.30383]
[1736534006338,0.30384,3291.1,3291.0,0.86963]
[1736534007233,1.425,3291.7,3291.0,0.5658]
[1736534007438,0.30381,3291.4,3291.3,0.3038]
[1736534007638,0.3038,3291.5,3291.4,0.30379]
[1736534007833,3.2078,3291.8,3291.1,3.10144094]
[1736534008030,0.30378,3291.7,3291.6,0.30378]
[1736534008428,3.2078,3291.8,3291.1,2.34186094]
[1736534008634,3.51156,3291.8,3291.7,0.30377]
[1736534008836,3.2078,3291.8,3291.7,0.30377]
[1736534009133,3.96707,3292.5,3291.5,3.2078]
[1736534009333,0.30374,3292.1,3292.0,0.30373]
[1736534010035,3.2078,3292.5,3291.8,0.5782]
[1736534010240,0.30375,3292.0,3291.9,0.30375]
[1736534011035,0.30373,3292.3,3292.2,0.30372]
[1736534011337,0.30368,3292.8,3292.7,0.30367]
[1736534011929,0.30369,3292.7,3292.6,0.30369]
[1736534012127,0.30369,3292.7,3292.4,40.8]
[1736534012128,3.2078,3293.0,3292.4,43.14186094]
[1736534012335,3.2078,3293.0,3292.9,0.30366]
[1736534012830,3.51145,3293.0,3292.9,0.30366]
[1736534013231,3.2078,3293.0,3292.9,0.30366]
[1736534016540,3.2078,3293.0,3292.6,0.5782]
[1736534016541,0.30371,3292.8,3292.6,0.5782]
[1736534016746,3.2078,3293.0,3292.6,0.5782]
[1736534017043,0.30371,3292.7,3292.6,0.88191]
[1736534017247,0.30374,3292.4,3292.3,0.30375]
[1736534017746,3.2078,3292.5,3291.9,1.0592]
[1736534018041,3.2078,3292.9,3292.8,0.3037]
[1736534018630,1.423,3293.7,3292.8,0.3037]
[1736534018631,3.2078,3293.3,3292.8,0.3037]
[1736534018833,3.2078,3293.3,3293.2,0.30367]
[1736534019034,3.2078,3293.3,3293.2,41.10367]
[1736534019641,0.30367,3293.2,3293.1,0.30367]
[1736534019943,3.2078,3293.3,3292.7,1.0592]
[1736534020146,0.30367,3293.2,3293.1,0.30367]
[1736534020444,3.2078,3293.3,3293.2,0.30367]
[1736534020834,3.2078,3293.7,3293.6,0.30363]
[1736534021640,3.2078,3294.1,3294.0,0.30359]
[1736534022540,3.2078,3294.1,3293.5,0.4804]
[1736534022541,0.30361,3293.8,3293.6,0.30363]
[1736534022837,0.30361,3293.8,3293.5,0.4804]
[1736534022838,0.30363,3293.6,3293.5,0.4804]
[1736534023637,0.30363,3293.6,3293.5,0.30364]
[1736534023839,3.51142,3293.7,3293.5,0.30364]
[1736534024038,3.2078,3293.7,3293.4,0.4961]
[1736534024346,3.2078,3293.7,3293.6,0.30363]
[1736534024744,3.2078,3294.1,3293.4,0.4961]
[1736534025043,3.2078,3294.1,3294.0,0.30359]
[1736534025244,3.2078,3294.5,3293.7,3.2078]
[1736534025447,0.30352,3294.8,3294.7,0.30352]
[1736534025640,4.6298,3295.0,3294.6,0.30353]
[1736534025641,3.2078,3295.0,3294.6,0.30353]
[1736534025841,4.6298,3295.0,3294.3,40.8]
[1736534026043,4.6298,3295.0,3293.7,0.75905]
[1736534026044,0.30361,3293.8,3293.7,0.30361]
[1736534026240,3.2078,3293.8,3293.4,0.4781]
[1736534026543,0.30363,3293.7,3293.6,0.30362]
[1736534026850,0.30364,3293.6,3293.5,0.30363]
[1736534027041,3.2078,3293.8,3293.4,0.4781]
[1736534027241,0.30363,3293.7,3293.6,0.30363]
[1736534027541,3.51142,3293.8,3293.7,0.30362]
[1736534027946,0.30362,3293.7,3293.6,0.30362]
[1736534028149,3.51142,3293.8,3293.7,0.30362]
[1736534028546,3.51142,3293.8,3293.5,0.30364]
[1736534028743,3.51142,3293.8,3293.7,0.30362]
[1736534029248,3.2078,3293.8,3293.7,0.30362]
[1736534029649,3.51141,3293.8,3293.7,0.30362]
[1736534029846,3.2078,3293.8,3293.7,0.30362]
[1736534031453,3.51134,3294.6,3294.5,0.30355]
[1736534031948,3.2078,3294.6,3294.5,0.30355]
[1736534032251,3.51134,3294.6,3294.5,0.30355]
[1736534032448,0.30355,3294.5,3294.2,0.9511]
[1736534032644,3.2078,3294.6,3294.2,0.9511]
[1736534032850,3.51135,3294.6,3294.5,0.30355]
[1736534033354,3.2078,3294.6,3294.5,0.30355]
[1736534033942,3.2078,3295.0,3294.7,0.75881]
[1736534034148,0.30349,3295.2,3295.1,0.30348]
[1736534035157,3.2078,3295.4,3294.7,0.75881]
[1736534035454,0.30348,3295.3,3295.2,0.30347]
[1736534035650,3.2078,3295.4,3294.5,0.75886]
[1736534035859,0.30349,3295.2,3295.1,0.30348]
[1736534036051,0.30348,3295.3,3295.2,0.30347]
[1736534036649,3.2078,3295.4,3295.3,0.30347]
[1736534037056,0.30346,3295.5,3295.1,0.4588]
[1736534037256,0.30346,3295.5,3295.4,0.30346]
[1736534038046,4.25670667,3295.6,3295.1,0.4588]
[1736534038252,3.2078,3295.4,3295.1,41.2588]
[1736534038460,0.30348,3295.2,3295.1,0.76229]
[1736534038661,3.2078,3295.4,3295.1,0.4588]
[1736534038847,3.2078,3295.4,3295.3,0.30347]
[1736534039048,3.2078,3295.4,3295.3,41.10347]
[1736534039254,3.2078,3295.4,3295.3,40.8]
[1736534039457,3.51126,3295.4,3295.3,41.10347]
[1736534039959,3.51126,3295.4,3295.3,0.30347]
[1736534040156,3.2078,3295.4,3295.3,0.30347]
[1736534041159,0.52054441,3295.8,3295.7,0.30344]
[1736534041160,4.03177441,3295.8,3295.7,0.30344]
[1736534041354,3.51123,3295.8,3295.7,0.30344]
[1736534041862,3.2078,3296.2,3296.0,0.3034]
[1736534042059,3.51119,3296.2,3296.1,0.3034]
[1736534042260,3.2078,3296.2,3296.1,0.3034]
[1736534043155,5.54337633,3296.2,3295.7,41.10342]
[1736534043474,3.2078,3296.2,3295.6,0.4613]
[1736534043658,0.3034,3296.1,3296.0,0.3034]
[1736534043853,0.3034,3296.1,3296.0,40.8]
[1736534044354,3.2078,3296.2,3295.6,0.4613]
[1736534044656,0.30343,3295.8,3295.7,0.30343]
[1736534044860,3.2078,3296.2,3295.6,0.4613]
[1736534045161,3.2078,3296.2,3296.1,0.3034]
[1736534045562,1.709,3296.2,3296.1,0.3034]
[1736534045759,0.3893,3297.8,3296.1,10.54337633]
[1736534045961,0.3893,3297.8,3297.4,2.33557633]
[1736534046265,0.30322,3298.1,3297.8,0.30323]
[1736534046465,3.2078,3298.0,3297.9,0.30323]
[1736534046660,0.30322,3298.0,3297.9,0.30323]
[1736534046865,0.30323,3297.9,3297.8,0.30324]
[1736534047064,0.75795,3298.5,3297.8,0.30324]
[1736534047065,0.30317,3298.7,3298.4,0.30319]
[1736534047457,3.2078,3298.9,3298.4,0.30319]
[1736534047763,3.2078,3298.5,3298.0,2.33557633]
[1736534047965,0.30323,3298.0,3297.7,5.54337633]
[1736534048156,0.4594,3298.4,3297.7,5.54337633]
[1736534048362,3.2078,3298.1,3297.7,5.54337633]
[1736534048661,0.4594,3298.4,3298.0,2.33557633]
[1736534048866,0.76259,3298.4,3298.2,0.3032]
[1736534049365,3.2078,3298.7,3298.2,2.82542588]
[1736534049571,0.30317,3298.6,3298.3,0.30319]
[1736534049768,3.2078,3298.7,3298.3,0.30319]
[1736534049966,0.30317,3298.6,3298.2,2.82542588]
[1736534050160,0.30318,3298.5,3298.2,3.12862588]
[1736534050363,0.30321,3298.2,3298.1,3.2078]
[1736534050559,0.30322,3298.1,3297.6,4.1953]
[1736534050771,0.30321,3298.2,3297.9,0.30323]
[1736534051070,0.30317,3298.6,3298.0,0.30322]
[1736534051370,0.30321,3298.2,3298.0,0.30322]
[1736534051570,0.3032,3298.3,3297.6,4.1953]
[1736534051768,0.30321,3298.2,3298.0,0.30322]
[1736534051966,3.6641,3298.7,3298.1,0.30321]
[1736534052173,0.30323,3298.0,3297.8,0.30324]
[1736534052569,3.2078,3298.3,3297.6,4.1953]
[1736534052772,0.4907,3298.6,3298.0,0.30322]
[1736534052773,0.30321,3298.2,3298.0,0.30322]
[1736534052975,3.6641,3298.7,3297.6,4.1953]
[1736534052976,0.30319,3298.5,3298.2,0.3032]
[1736534053374,3.6641,3298.7,3298.2,0.3032]
[1736534053574,0.30319,3298.4,3298.2,0.3032]
[1736534053876,3.6641,3298.7,3297.6,4.1953]
[1736534054077,0.30317,3298.6,3298.3,0.30319]
[1736534054275,0.30319,3298.4,3298.2,0.3032]
[1736534054475,0.30319,3298.5,3298.0,3.2078]
[1736534054775,3.6641,3298.7,3298.0,3.2078]
[1736534055070,3.2078,3298.7,3298.5,0.30317]
[1736534055263,3.2078,3298.7,3298.6,0.30317]
[1736534055663,0.30318,3298.6,3298.3,0.30319]
[1736534055862,3.2078,3298.7,3298.2,0.3032]
[1736534056062,0.3032,3298.4,3298.2,0.3032]
[1736534056476,0.30318,3298.5,3298.3,0.3032]
[1736534057075,3.2078,3298.7,3298.0,3.2078]
[1736534057376,3.2078,3298.7,3298.6,0.30317]
[1736534057970,3.2078,3298.7,3298.1,2.82542588]
[1736534058167,3.51096,3298.7,3298.6,0.30317]
[1736534058366,0.30318,3298.5,3298.3,0.30319]
[1736534058665,0.30317,3298.6,3298.0,3.2078]
[1736534058868,0.30319,3298.4,3298.2,0.3032]
[1736534059074,3.2078,3298.7,3298.4,0.30318]
[1736534059075,0.30317,3298.6,3298.4,0.30318]
[1736534059269,0.30318,3298.5,3298.3,0.30319]
[1736534059671,3.2078,3298.7,3298.0,3.2078]
[1736534059863,3.6682,3299.2,3298.4,3.2078]
[1736534060069,0.30313,3299.0,3298.9,0.30314]
[1736534060482,3.2078,3299.2,3298.6,40.8]
[1736534060672,0.30315,3298.9,3298.7,0.30316]
[1736534060877,0.30315,3298.9,3298.8,0.30315]
[1736534061174,0.30316,3298.8,3298.7,0.30316]
[1736534061372,3.2078,3299.2,3298.5,0.9228]
[1736534061572,0.30317,3298.6,3298.5,1.22598]
[1736534061875,0.30317,3298.6,3298.5,1.22597]
[1736534062071,3.6828,3299.2,3298.1,40.8]
[1736534062072,3.2078,3298.8,3298.1,40.8]
[1736534062273,0.30318,3298.5,3298.4,0.30318]
[1736534063173,0.30317,3298.7,3298.6,0.30316]
[1736534064374,0.30314,3299.0,3298.9,0.30313]
[1736534064574,0.30313,3299.1,3299.0,0.30312]
[1736534064768,0.30313,3299.2,3299.1,0.30312]
[1736534066277,0.30311,3299.3,3299.2,0.3031]
[1736534066581,0.30315,3298.9,3298.8,0.30314]
[1736534067078,0.75772,3299.5,3298.7,4.1593]
[1736534067280,0.30313,3299.1,3299.0,0.30313]
[1736534067780,0.30315,3299.0,3298.9,0.30314]
[1736534068479,0.30315,3299.0,3298.7,4.1593]
[1736534068480,0.75772,3299.5,3298.7,4.1593]
[1736534068684,0.30313,3299.1,3299.0,0.30312]
[1736534069178,3.2078,3299.3,3298.7,4.1593]
[1736534069384,0.30315,3298.9,3298.8,0.30314]
[1736534069983,0.30313,3299.1,3299.0,0.30313]
[1736534072282,2.33083087,3299.2,3298.7,3.6648]
[1736534072580,2.33083087,3298.9,3298.3,3.2078]
[1736534072790,0.30319,3298.4,3298.3,3.2078]
[1736534072978,2.33083087,3298.6,3297.9,0.30323]
[1736534073183,0.30322,3298.0,3297.9,0.30323]
[1736534073384,0.30323,3297.9,3297.8,3.2078]
[1736534073580,0.30323,3297.9,3297.8,44.0078]
[1736534073780,0.30323,3297.9,3297.8,44.31104]
[1736534074180,0.30323,3297.9,3297.8,3.2078]
[1736534074383,0.30323,3297.9,3297.8,3.51104]
[1736534074581,0.30323,3297.9,3297.8,3.2078]
[1736534074788,0.30323,3297.9,3297.8,3.51104]
[1736534075483,0.30324,3297.8,3297.7,41.10325]
[1736534075881,0.30324,3297.8,3297.7,40.8]
[1736534076078,0.30324,3297.8,3297.7,0.30325]
[1736534076388,0.30325,3297.7,3297.6,0.495]
[1736534076591,0.30325,3297.7,3297.6,41.295]
[1736534076789,0.30325,3297.7,3297.6,41.59826]
[1736534077290,5.53863087,3298.3,3297.6,41.295]
[1736534077586,0.30323,3298.0,3297.9,0.30322]
[1736534077885,2.78273087,3298.6,3297.6,41.295]
[1736534077886,2.33083087,3298.9,3297.8,3.2078]
[1736534078187,5.53863087,3299.8,3298.3,5.53863087]
[1736534078387,0.30311,3299.2,3299.0,0.30313]
[1736534078579,6.29629087,3299.8,3299.0,0.30313]
[1736534078782,0.3031,3299.4,3299.0,0.30313]
[1736534079086,0.30309,3299.5,3299.0,41.10313]
[1736534079291,0.3031,3299.4,3299.0,41.10313]
[1736534079492,0.30311,3299.3,3299.0,41.10313]
[1736534079992,3.96546,3299.8,3299.0,41.10313]
[1736534080191,0.30566186,3299.1,3299.0,41.10313]